fUST/lending_fUST_20250223
["ID","MTS","AMOUNT","RATE_DAILY","PERIOD"]
[354137617,1740279043351,-173.689,0.00014923,2]
[354137619,1740279043360,-501.69,0.00014972,2]
[354137621,1740279043369,-500.0,0.00014972,2]
[354137623,1740279043378,-500.0,0.00014972,2]
[354137625,1740279043387,-500.0,0.00014972,2]
[354137627,1740279043395,-524.15,0.00014972,2]
[354137629,1740279043405,-1211.31,0.00014972,2]
[354137631,1740279043414,-500.0,0.00014972,2]
[354137633,1740279043423,-509.04158611,0.00014973,2]
[354137635,1740279043432,-622.1309853,0.00014973,2]
[354137637,1740279043441,-500.0,0.00014973,2]
[354137639,1740279043449,-500.0,0.00014973,2]
[354137640,1740279043458,-500.0,0.00014973,2]
[354137642,1740279043467,-163.03544173,0.00014973,2]
[354137645,1740279043477,-501.01108224,0.00014973,2]
[354137647,1740279043486,-500.29863877,0.00014973,2]
[354137649,1740279043496,-588.16130816,0.00014973,2]
[354137651,1740279043505,-500.0,0.00014973,2]
[354137653,1740279043514,-500.0,0.00014973,2]
[354137655,1740279043523,-500.0,0.00014973,2]
[354137657,1740279043533,-505.25354362,0.00014973,2]
[354137659,1740279043542,-500.0,0.00014973,2]
[354137660,1740279043551,-500.10290801,0.00014973,2]
[354137662,1740279043560,-500.0,0.00014973,2]
[354137664,1740279043571,-500.0,0.00014973,2]
[354137666,1740279043580,-171.12504259,0.00014973,2]
[354137668,1740279043589,-500.0,0.00014973,2]
[354137670,1740279043598,-502.47157931,0.00014973,2]
[354137672,1740279043608,-500.0,0.00014973,2]
[354137674,1740279043617,-251.51484246,0.00014973,2]
[354137676,1740279043626,-156.90533495,0.00014973,2]
[354137678,1740279043635,-500.0,0.00014973,2]
[354137680,1740279043645,-2412.41951736,0.00014978,2]
[354137682,1740279043654,-2412.41951736,0.00014987,2]
[354137684,1740279043663,-33773.873243,0.00014988,2]
[354137686,1740279043672,-321.26103113,0.00014997,2]
[354137688,1740279043681,-500.0,0.00014997,2]
[354137690,1740279043690,-434.85758015,0.00014997,2]
[354137692,1740279043699,-500.0,0.00014997,2]
[354137694,1740279043708,-500.0,0.00014997,2]
[354137696,1740279043717,-500.0,0.00014997,2]
[354137698,1740279043726,-500.0,0.00014997,2]
[354137700,1740279043735,-500.0,0.00014997,2]
[354137702,1740279043744,-500.0,0.00014997,2]
[354137704,1740279043752,-333.19807125,0.00014997,2]
[354137706,1740279043762,-500.0,0.00014997,2]
[354137708,1740279043771,-500.0,0.00014997,2]
[354137710,1740279043781,-500.0,0.00014997,2]
[354137712,1740279043790,-500.0,0.00014997,2]
[354137714,1740279043799,-514.88140452,0.00014997,2]
[354137716,1740279043809,-500.0,0.00014997,2]
[354137718,1740279043817,-500.0,0.00014997,2]
[354137720,1740279043826,-500.0,0.00014997,2]
[354137722,1740279043836,-500.0,0.00014997,2]
[354137724,1740279043845,-500.0,0.00014997,2]
[354137726,1740279043854,-500.0,0.00014997,2]
[354137728,1740279043864,-500.0,0.00014997,2]
[354137730,1740279043873,-500.0,0.00014997,2]
[354137732,1740279043882,-500.0,0.00014997,2]
[354137734,1740279043891,-500.0,0.00014997,2]
[354137736,1740279043900,-500.0,0.00014997,2]
[354137738,1740279043909,-1508.38,0.00014997,2]
[354137740,1740279043919,-500.0,0.00014997,2]
[354137742,1740279043928,-500.0,0.00014997,2]
[354137744,1740279043937,-621.53231473,0.00014997,2]
[354137746,1740279043947,-500.0,0.00014997,2]
[354137748,1740279043955,-535.21,0.00014997,2]
[354137750,1740279043965,-500.0,0.00014997,2]
[354137752,1740279043974,-500.0,0.00014997,2]
[354137754,1740279043983,-500.0,0.00014997,2]
[354137756,1740279043992,-678.44,0.00014997,2]
[354137758,1740279044002,-500.0,0.00014997,2]
[354137760,1740279044011,-500.0,0.00014997,2]
[354137762,1740279044020,-1312.77,0.00014997,2]
[354137764,1740279044029,-500.0,0.00014997,2]
[354137766,1740279044038,-500.0,0.00014997,2]
[354137768,1740279044047,-500.0,0.00014997,2]
[354137770,1740279044056,-500.0,0.00014997,2]
[354137772,1740279044066,-706.86,0.00014997,2]
[354137774,1740279044075,-500.0,0.00014997,2]
[354137776,1740279044084,-936.14,0.00014997,2]
[354137778,1740279044093,-500.0,0.00014997,2]
[354137780,1740279044102,-500.0,0.00014997,2]
[354137782,1740279044112,-500.0,0.00014997,2]
[354137784,1740279044121,-265.953402,0.00014997,2]
[354137786,1740279044131,-500.0,0.00014997,2]
[354137788,1740279044140,-500.0,0.00014997,2]
[354137790,1740279044149,-500.0,0.00014997,2]
[354137792,1740279044159,-500.0,0.00014997,2]
[354137794,1740279044168,-500.0,0.00014997,2]
[354137796,1740279044177,-500.0,0.00014997,2]
[354137798,1740279044186,-500.0,0.00014997,2]
[354137800,1740279044196,-500.0,0.00014997,2]
[354137802,1740279044205,-500.0,0.00014997,2]
[354137804,1740279044213,-3631.19,0.00014997,2]
[354137806,1740279044222,-500.0,0.00014997,2]
[354137808,1740279044231,-500.0,0.00014997,2]
[354137810,1740279044239,-7882.68,0.00014997,2]
[354137812,1740279044250,-500.0,0.00014997,2]
[354137814,1740279044259,-500.0,0.00014997,2]
[354137816,1740279044268,-1727.46,0.00014997,2]
[354137817,1740279044279,-7707.66403557,0.00014998,5]
[354137819,1740279044288,-10011.39025207,0.00014998,5]
[354137821,1740279044297,-327742.79985368,0.00014998,5]
[354138104,1740280232469,-500.0,0.00014164,2]
[354138106,1740280232481,-31129.07403857,0.00014164,2]
[354138533,1740280238097,-1256.34000017,0.00014164,2]
[354138536,1740280238151,-1036.03865629,0.00014164,2]
[354138538,1740280238165,-1758.00305707,0.00014164,2]
[354138540,1740280238178,-25675.1642479,0.00014164,2]
[354138543,1740280238189,-1000.0,0.000146,2]
[354138544,1740280238199,-1000.0,0.000146,3]
[354138545,1740280238210,-465.76958826,0.00014671,2]
[354138547,1740280238221,-219.0182236,0.00014697,2]
[354138550,1740280238232,-300.0,0.00014703,2]
[354138552,1740280238243,-12924.89674434,0.00014704,2]
[354138554,1740280238253,-549.53,0.00014706,2]
[354138556,1740280238264,-500.0,0.00014706,2]
[354138558,1740280238274,-500.0,0.00014706,2]
[354138560,1740280238285,-1282.16,0.00014706,2]
[354138563,1740280238296,-500.0,0.00014706,2]
[354138565,1740280238307,-500.0,0.00014708,2]
[354138567,1740280238317,-566.02,0.00014708,2]
[354138569,1740280238328,-1655.95,0.00014708,2]
[354138585,1740280238466,-944.78,0.0001471,2]
[354138588,1740280238482,-500.0,0.0001471,2]
[354138590,1740280238491,-500.0,0.0001471,2]
[354138592,1740280238501,-576.88,0.0001471,2]
[354138594,1740280238510,-500.0,0.0001471,2]
[354138596,1740280238519,-727.94,0.0001471,2]
[354138598,1740280238528,-1409.67,0.0001471,2]
[354138600,1740280238538,-706.86,0.0001471,2]
[354138602,1740280238547,-500.0,0.0001471,2]
[354138604,1740280238555,-500.0,0.0001471,2]
[354138606,1740280238564,-500.0,0.0001471,2]
[354138608,1740280238574,-507.98,0.0001471,2]
[354138610,1740280238583,-500.0,0.0001471,2]
[354138612,1740280238593,-500.0,0.0001471,2]
[354138614,1740280238602,-500.0,0.0001471,2]
[354138616,1740280238614,-500.0,0.0001471,2]
[354138618,1740280238623,-500.0,0.0001471,2]
[354138620,1740280238632,-8539.89,0.0001471,2]
[354138622,1740280238641,-507.35,0.00014713,2]
[354138624,1740280238651,-500.0,0.00014713,2]
[354138626,1740280238660,-500.0,0.00014713,2]
[354138627,1740280238671,-500.0,0.00014713,2]
[354138629,1740280238680,-500.0,0.00014713,2]
[354138632,1740280238691,-3845.5,0.00014713,2]
[354138634,1740280238701,-500.0,0.00014713,2]
[354138636,1740280238710,-500.0,0.00014713,2]
[354138638,1740280238719,-153.20069245,0.00014716,2]
[354138640,1740280238728,-500.0,0.00014717,2]
[354138642,1740280238738,-500.0,0.00014717,2]
[354138644,1740280238747,-440.51500117,0.00014717,2]
[354138646,1740280238757,-500.0,0.00014717,2]
[354138648,1740280238766,-500.0,0.00014717,2]
[354138650,1740280238777,-500.0,0.00014717,2]
[354138652,1740280238786,-500.0,0.00014717,2]
[354138654,1740280238795,-501.42061965,0.00014718,2]
[354138656,1740280238804,-500.0,0.00014718,2]
[354138658,1740280238814,-419.67188834,0.00014718,2]
[354138660,1740280238822,-246.76413256,0.00014718,2]
[354138661,1740280238832,-416.66698749,0.00014718,2]
[354138664,1740280238842,-500.0,0.00014718,2]
[354138666,1740280238852,-500.0,0.00014718,2]
[354138668,1740280238861,-500.0,0.00014718,2]
[354138669,1740280238870,-506.26987863,0.00014718,2]
[354138671,1740280238879,-502.98273733,0.00014718,2]
[354138673,1740280238889,-510.86805081,0.00014718,2]
[354138675,1740280238898,-500.0,0.00014718,2]
[354138677,1740280238907,-509.99639446,0.00014718,2]
[354138679,1740280238916,-500.0,0.00014718,2]
[354138681,1740280238925,-504.98690542,0.00014718,2]
[354138683,1740280238934,-581.28357882,0.00014718,2]
[354138685,1740280238943,-500.0,0.00014718,2]
[354138687,1740280238953,-500.0,0.00014718,2]
[354138689,1740280238962,-500.0,0.00014718,2]
[354138691,1740280238971,-510.08913117,0.00014718,2]
[354138693,1740280238981,-500.0,0.00014718,2]
[354138695,1740280238991,-509.07900048,0.00014718,2]
[354138697,1740280239000,-503.61852324,0.00014718,2]
[354138699,1740280239009,-551.44061036,0.00014718,2]
[354138701,1740280239018,-501.54290162,0.00014718,2]
[354138703,1740280239027,-505.17157884,0.00014718,2]
[354138705,1740280239037,-500.87437801,0.00014718,2]
[354138707,1740280239047,-508.94792854,0.00014718,2]
[354138709,1740280239056,-503.43953409,0.00014718,2]
[354138711,1740280239064,-500.0,0.00014718,2]
[354138713,1740280239075,-500.0,0.00014718,2]
[354138716,1740280239085,-500.0,0.00014718,2]
[354138718,1740280239094,-500.0,0.00014718,2]
[354138720,1740280239104,-500.0,0.00014718,2]
[354138722,1740280239113,-632.53425165,0.00014718,2]
[354138723,1740280239122,-500.0,0.00014718,2]
[354138726,1740280239131,-500.0,0.00014718,2]
[354138727,1740280239140,-510.53693325,0.00014718,2]
[354138729,1740280239149,-503.50414996,0.00014718,2]
[354138731,1740280239159,-501.18284724,0.00014718,2]
[354138733,1740280239168,-501.22553847,0.00014718,2]
[354138735,1740280239178,-500.0,0.00014718,2]
[354138738,1740280239187,-501.49036391,0.00014718,2]
[354138740,1740280239197,-936.14,0.00014718,2]
[354138741,1740280239207,-504.12976286,0.00014718,2]
[354138743,1740280239216,-500.0,0.00014718,2]
[354138745,1740280239225,-502.26568532,0.00014718,2]
[354138747,1740280239234,-500.0,0.00014718,2]
[354138749,1740280239244,-505.43148286,0.00014718,2]
[354138752,1740280239254,-504.20343833,0.00014718,2]
[354138754,1740280239264,-500.91212259,0.00014718,2]
[354138756,1740280239274,-500.0,0.00014718,2]
[354138758,1740280239283,-508.0620011,0.00014718,2]
[354138760,1740280239292,-523.86441026,0.00014718,2]
[354138762,1740280239302,-500.0,0.00014718,2]
[354138764,1740280239311,-500.0,0.00014718,2]
[354138766,1740280239320,-500.0,0.00014718,2]
[354138768,1740280239329,-500.0,0.00014718,2]
[354138770,1740280239338,-500.0,0.00014718,2]
[354138772,1740280239347,-500.0,0.00014718,2]
[354138774,1740280239357,-500.0,0.00014718,2]
[354138776,1740280239366,-170.07795884,0.00014718,2]
[354138778,1740280239375,-503.92730573,0.00014718,2]
[354138780,1740280239384,-500.0,0.00014718,2]
[354138781,1740280239393,-502.01421432,0.00014718,2]
[354138784,1740280239403,-500.0,0.00014718,2]
[354138786,1740280239413,-500.0,0.00014718,2]
[354138788,1740280239422,-500.0,0.00014718,2]
[354138790,1740280239433,-505.73730247,0.00014718,2]
[354138792,1740280239443,-215.41906814,0.00014718,2]
[354138794,1740280239452,-500.0,0.00014718,2]
[354138795,1740280239461,-500.0,0.00014718,2]
[354138797,1740280239470,-500.0,0.00014718,2]
[354138799,1740280239481,-500.0,0.00014718,2]
[354138802,1740280239490,-500.0,0.00014718,2]
[354138803,1740280239499,-1912.64,0.00014718,2]
[354138805,1740280239508,-500.0,0.00014718,2]
[354138807,1740280239518,-500.0,0.00014718,2]
[354138809,1740280239528,-500.0,0.00014718,2]
[354138811,1740280239537,-500.0,0.00014718,2]
[354138813,1740280239546,-511.17225183,0.00014718,2]
[354138815,1740280239556,-500.0,0.00014718,2]
[354138817,1740280239566,-500.0,0.00014718,2]
[354138819,1740280239576,-509.89,0.00014718,2]
[354138823,1740280239586,-500.0,0.00014718,2]
[354138826,1740280239595,-500.0,0.00014718,2]
[354138829,1740280239605,-500.0,0.00014718,2]
[354138830,1740280239617,-500.0,0.00014718,2]
[354138832,1740280239627,-504.66261384,0.00014718,2]
[354138835,1740280239636,-500.0,0.00014718,2]
[354138837,1740280239646,-500.0,0.00014718,2]
[354138839,1740280239656,-430.38045739,0.00014718,2]
[354138841,1740280239666,-500.0,0.00014718,2]
[354138843,1740280239675,-500.0,0.00014718,2]
[354138844,1740280239685,-500.0,0.00014718,2]
[354138846,1740280239694,-500.0,0.00014718,2]
[354138848,1740280239704,-500.0,0.00014718,2]
[354138851,1740280239714,-500.0,0.00014718,2]
[354138853,1740280239723,-500.0,0.00014718,2]
[354138855,1740280239733,-500.0,0.00014718,2]
[354138857,1740280239743,-500.43480581,0.00014718,2]
[354138859,1740280239753,-508.79457858,0.00014725,2]
[354138861,1740280239762,-500.0,0.00014725,2]
[354138863,1740280239772,-500.0,0.00014725,2]
[354138866,1740280239781,-505.81226409,0.00014725,2]
[354138869,1740280239790,-500.0,0.00014725,2]
[354138872,1740280239800,-500.0,0.00014725,2]
[354138875,1740280239810,-402.57440479,0.0001475,2]
[354138878,1740280239819,-500.0,0.0001475,2]
[354138881,1740280239828,-500.0,0.0001475,2]
[354138884,1740280239838,-500.0,0.0001475,2]
[354138886,1740280239847,-500.0,0.0001475,2]
[354138887,1740280239857,-500.0,0.0001475,2]
[354138888,1740280239866,-500.0,0.0001475,2]
[354138889,1740280239875,-500.0,0.0001475,2]
[354138890,1740280239884,-500.0,0.0001475,2]
[354138891,1740280239894,-504.65998054,0.0001475,2]
[354138893,1740280239903,-233.1047977,0.0001475,2]
[354138894,1740280239913,-13279.54588923,0.00014751,2]
[354138895,1740280239922,-500.0,0.00014773,2]
[354138896,1740280239932,-199.94085069,0.00014783,2]
[354138897,1740280239942,-549.53,0.00014788,2]
[354138898,1740280239951,-500.0,0.00014788,2]
[354138899,1740280239961,-500.0,0.00014788,2]
[354138900,1740280239971,-1282.16,0.00014788,2]
[354138902,1740280239980,-500.0,0.00014788,2]
[354138903,1740280239990,-500.0,0.0001479,2]
[354138904,1740280239999,-566.02,0.0001479,2]
[354138905,1740280240010,-1655.95,0.0001479,2]
[354138906,1740280240020,-944.78,0.00014793,2]
[354138907,1740280240030,-500.0,0.00014793,2]
[354138909,1740280240040,-500.0,0.00014793,2]
[354138910,1740280240049,-576.88,0.00014793,2]
[354138911,1740280240059,-500.0,0.00014793,2]
[354138912,1740280240068,-727.94,0.00014793,2]
[354138913,1740280240078,-1409.67,0.00014793,2]
[354138914,1740280240087,-706.86,0.00014793,2]
[354138915,1740280240096,-500.0,0.00014793,2]
[354138916,1740280240105,-500.0,0.00014793,2]
[354138917,1740280240115,-500.0,0.00014793,2]
[354138918,1740280240125,-507.98,0.00014793,2]
[354138919,1740280240134,-500.0,0.00014793,2]
[354138921,1740280240143,-500.0,0.00014793,2]
[354138922,1740280240152,-500.0,0.00014793,2]
[354138923,1740280240163,-500.0,0.00014793,2]
[354138924,1740280240174,-500.0,0.00014793,2]
[354138925,1740280240183,-8539.89,0.00014793,2]
[354138927,1740280240192,-507.35,0.00014795,2]
[354138928,1740280240202,-500.0,0.00014795,2]
[354138930,1740280240212,-500.0,0.00014795,2]
[354138931,1740280240223,-500.0,0.00014795,2]
[354138932,1740280240233,-500.0,0.00014795,2]
[354138933,1740280240243,-3845.5,0.00014795,2]
[354138935,1740280240253,-500.0,0.00014795,2]
[354138936,1740280240262,-500.0,0.00014795,2]
[354138937,1740280240272,-500.0,0.000148,2]
[354138938,1740280240281,-500.0,0.000148,2]
[354138939,1740280240290,-500.0,0.000148,2]
[354138940,1740280240299,-500.0,0.000148,2]
[354138941,1740280240308,-500.0,0.000148,2]
[354138942,1740280240317,-500.0,0.000148,2]
[354138943,1740280240326,-500.0,0.000148,2]
[354138944,1740280240337,-500.0,0.000148,2]
[354138945,1740280240347,-500.0,0.000148,2]
[354138946,1740280240356,-506.60211641,0.000148,2]
[354138947,1740280240366,-500.0,0.000148,2]
[354138948,1740280240375,-500.0,0.000148,2]
[354138949,1740280240385,-500.0,0.000148,2]
[354138950,1740280240394,-500.0,0.000148,2]
[354138951,1740280240404,-936.14,0.000148,2]
[354138952,1740280240427,-500.0,0.000148,2]
[354138953,1740280240436,-500.0,0.000148,2]
[354138954,1740280240446,-500.0,0.000148,2]
[354138955,1740280240456,-500.0,0.000148,2]
[354138956,1740280240466,-500.0,0.000148,2]
[354138957,1740280240475,-500.0,0.000148,2]
[354138958,1740280240484,-500.0,0.000148,2]
[354138959,1740280240494,-509.10088393,0.000148,2]
[354138960,1740280240503,-500.0,0.000148,2]
[354138961,1740280240514,-500.0,0.000148,2]
[354138962,1740280240525,-1000.0,0.000148,4]
[354138963,1740280240534,-1000.0,0.000148,5]
[354138964,1740280240544,-500.0,0.000148,2]
[354138965,1740280240555,-500.0,0.000148,2]
[354138966,1740280240565,-1912.64,0.000148,2]
[354138967,1740280240575,-154.796407,0.000148,2]
[354138968,1740280240585,-500.0,0.000148,2]
[354138969,1740280240595,-500.0,0.000148,2]
[354138970,1740280240605,-396.09995787,0.000148,2]
[354138971,1740280240617,-500.0,0.000148,2]
[354138972,1740280240626,-500.0,0.000148,2]
[354138973,1740280240635,-500.0,0.000148,2]
[354138974,1740280240644,-309.1288916,0.000148,2]
[354138975,1740280240655,-509.89,0.000148,2]
[354138976,1740280240666,-500.0,0.000148,2]
[354138977,1740280240675,-500.0,0.000148,2]
[354138978,1740280240689,-500.0,0.000148,2]
[354138979,1740280240701,-500.0,0.000148,2]
[354138980,1740280240713,-364.8354735,0.000148,2]
[354138981,1740280240723,-500.0,0.000148,2]
[354138982,1740280240733,-500.0,0.000148,2]
[354138983,1740280240745,-500.0,0.000148,2]
[354138984,1740280240754,-514.08180151,0.000148,2]
[354138985,1740280240765,-500.0,0.000148,2]
[354138986,1740280240777,-500.0,0.000148,2]
[354138987,1740280240786,-505.95261387,0.000148,2]
[354138988,1740280240796,-511.24417759,0.000148,2]
[354138989,1740280240805,-500.0,0.00014807,2]
[354138990,1740280240814,-500.0,0.00014807,2]
[354138991,1740280240824,-500.0,0.00014807,2]
[354138992,1740280240833,-500.0,0.00014807,2]
[354138993,1740280240843,-500.0,0.00014832,2]
[354138994,1740280240853,-500.0,0.00014832,2]
[354138995,1740280240863,-500.0,0.00014832,2]
[354138996,1740280240872,-505.07484295,0.00014832,2]
[354138997,1740280240881,-500.0,0.00014832,2]
[354138998,1740280240890,-500.0,0.00014832,2]
[354138999,1740280240899,-500.0,0.00014832,2]
[354139000,1740280240909,-500.0,0.00014849,2]
[354139001,1740280240918,-570.87010378,0.00014849,2]
[354139002,1740280240928,-10372.36550489,0.0001485,5]
[354139003,1740280240943,-4465.9969657,0.0001485,5]
[354139004,1740280240952,-38270.12525897,0.0001485,5]
[354139005,1740280240964,-589.80977953,0.0001485,5]
[354139006,1740280240977,-1774.93,0.0001485,5]
[354139007,1740280241228,-509.95662658,0.00014163,2]
[354139008,1740280241238,-347636.38151024,0.0001485,5]
[354139009,1740280241249,-8302.04023817,0.0001485,5]
[354139010,1740280241265,-685419.09187844,0.0001485,5]
[354139038,1740280246218,-330.85826451,0.00014163,2]
[354139039,1740280246234,-169.14173549,0.00014163,2]
[354139040,1740280246244,-866.05,0.00014706,2]
[354139041,1740280246253,-500.0,0.0001471,2]
[354139042,1740280246263,-319.0672392,0.00014717,2]
[354139043,1740280246272,-505.63039037,0.00014718,2]
[354139044,1740280246282,-866.05,0.00014788,2]
[354139045,1740280246291,-500.0,0.00014793,2]
[354139046,1740280246301,-385.80036354,0.0001485,5]
[354139047,1740280392386,279.823131,9.041e-05,2]
[354139094,1740281432576,-670.68229024,0.00013,2]
[354139095,1740281432588,-3326.53197658,0.00013,2]
[354139096,1740281432598,-165.0,0.0001416,2]
[354139097,1740281432608,-500.0,0.00014161,2]
[354139098,1740281432617,-500.0,0.00014161,2]
[354139099,1740281432627,-596.67,0.00014161,2]
[354139100,1740281432637,-500.0,0.00014161,2]
[354139101,1740281432646,-667.28,0.00014161,2]
[354139102,1740281432655,-1292.2,0.00014161,2]
[354139103,1740281432664,-647.96,0.00014161,2]
[354139104,1740281432674,-500.0,0.00014161,2]
[354139105,1740281432684,-503.74,0.00014161,2]
[354139106,1740281432693,-500.0,0.00014161,2]
[354139107,1740281432703,-500.0,0.00014161,2]
[354139108,1740281432713,-500.0,0.00014161,2]
[354139109,1740281432723,-500.0,0.00014161,2]
[354139110,1740281432732,-500.0,0.00014161,2]
[354139111,1740281432741,-500.0,0.00014161,2]
[354139112,1740281432751,-500.0,0.00014161,2]
[354139113,1740281432760,-500.0,0.00014161,2]
[354139114,1740281432769,-500.0,0.00014161,2]
[354139115,1740281432780,-518.85,0.00014161,2]
[354139116,1740281432791,-1175.31,0.00014161,2]
[354139117,1740281432800,-500.0,0.00014161,2]
[354139118,1740281432809,-500.0,0.00014161,2]
[354139119,1740281432818,-500.0,0.00014161,2]
[354139120,1740281432828,-904.02,0.00014161,2]
[354139121,1740281432837,-1517.95,0.00014161,2]
[354139122,1740281432846,-8914.43,0.00014161,2]
[354139123,1740281432856,-500.0,0.00014162,2]
[354139124,1740281432865,-500.0,0.00014162,2]
[354139125,1740281432875,-500.0,0.00014162,2]
[354139126,1740281432885,-500.0,0.00014162,2]
[354139127,1740281432894,-500.0,0.00014162,2]
[354139128,1740281432904,-500.0,0.00014162,2]
[354139129,1740281432913,-500.0,0.00014162,2]
[354139130,1740281432922,-500.0,0.00014162,2]
[354139131,1740281432931,-500.0,0.00014162,2]
[354139132,1740281432941,-500.0,0.00014162,2]
[354139133,1740281432950,-511.17554108,0.00014162,2]
[354139134,1740281432959,-500.0,0.00014162,2]
[354139135,1740281432969,-500.0,0.00014162,2]
[354139136,1740281432978,-500.0,0.00014162,2]
[354139137,1740281432991,-500.0,0.00014162,2]
[354139138,1740281433000,-500.0,0.00014162,2]
[354139139,1740281433010,-500.0,0.00014162,2]
[354139140,1740281433019,-500.0,0.00014162,2]
[354139141,1740281433029,-500.0,0.00014162,2]
[354139142,1740281433039,-506.62701065,0.00014162,2]
[354139143,1740281433048,-500.0,0.00014162,2]
[354139144,1740281433057,-500.0,0.00014162,2]
[354139145,1740281433069,-500.0,0.00014162,2]
[354139146,1740281433078,-500.0,0.00014162,2]
[354139147,1740281433088,-500.0,0.00014162,2]
[354139148,1740281433097,-567.84,0.00014162,2]
[354139149,1740281433107,-500.0,0.00014162,2]
[354139150,1740281433117,-500.0,0.00014162,2]
[354139151,1740281433127,-500.0,0.00014162,2]
[354139152,1740281433136,-500.0,0.00014162,2]
[354139153,1740281433146,-500.0,0.00014162,2]
[354139154,1740281433156,-500.0,0.00014162,2]
[354139155,1740281433166,-500.0,0.00014162,2]
[354139156,1740281433175,-500.0,0.00014162,2]
[354139157,1740281433185,-581.07836283,0.00014162,2]
[354139158,1740281433195,-451.76195016,0.00014162,2]
[354139159,1740281433205,-500.0,0.00014162,2]
[354139160,1740281433215,-500.0,0.00014162,2]
[354139161,1740281433225,-500.0,0.00014162,2]
[354139162,1740281433235,-3525.04,0.00014162,2]
[354139163,1740281433244,-500.0,0.00014162,2]
[354139164,1740281433254,-500.0,0.00014162,2]
[354139165,1740281433263,-500.0,0.00014162,2]
[354139166,1740281433273,-500.0,0.00014162,2]
[354139167,1740281433282,-1753.25,0.00014162,2]
[354139168,1740281433292,-500.0,0.00014162,2]
[354139169,1740281433301,-500.0,0.00014163,2]
[354139170,1740281433311,-500.0,0.00014163,2]
[354139171,1740281433415,-500.0,0.00014163,2]
[354139172,1740281433435,-500.0,0.00014164,2]
[354139173,1740281433446,-500.0,0.00014243,2]
[354139174,1740281433457,-500.0,0.00014243,2]
[354139175,1740281433466,-596.67,0.00014243,2]
[354139176,1740281433475,-500.0,0.00014243,2]
[354139177,1740281433485,-667.28,0.00014243,2]
[354139178,1740281433494,-1292.2,0.00014243,2]
[354139179,1740281433504,-647.96,0.00014243,2]
[354139180,1740281433513,-500.0,0.00014243,2]
[354139181,1740281433523,-503.74,0.00014243,2]
[354139182,1740281433532,-500.0,0.00014243,2]
[354139183,1740281433542,-500.0,0.00014243,2]
[354139184,1740281433554,-500.0,0.00014243,2]
[354139185,1740281433563,-500.0,0.00014243,2]
[354139186,1740281433573,-500.0,0.00014243,2]
[354139187,1740281433583,-500.0,0.00014243,2]
[354139188,1740281433592,-265.953402,0.00014243,2]
[354139189,1740281433602,-500.0,0.00014243,2]
[354139190,1740281433618,-500.0,0.00014243,2]
[354139191,1740281433632,-518.85,0.00014243,2]
[354139192,1740281433642,-1175.31,0.00014243,2]
[354139193,1740281433653,-500.0,0.00014243,2]
[354139194,1740281433665,-500.0,0.00014243,2]
[354139195,1740281433675,-500.0,0.00014243,2]
[354139196,1740281433686,-904.02,0.00014243,2]